Cogmind - Beta 13 @@@ ROGUE MODE // 2024.05.14 @ 22:26:21 Player: H3-RMN Result: Self-destructed Performance ------------- Evolutions (4) 2000 Regions Visited (12) 2400 Robots Destroyed (87) 435 Value Destroyed (3885) 3885 Prototype IDs (52) 1040 Alien Tech Used (0) 0 Bonus (944) 944 TOTAL SCORE: 10704 Bonus ------- High Alert Combat Kills 161 Follower Combat Kills 70 Entered Garrisons 200 Met Data Miner 300 Acquired ECA 300 Friendly Fire -87 Cogmind --------- Core Integrity 753/850 Matter 282/300 Energy 149/150 System Corruption 0% Temperature Cool (3) Movement Hovering (66) Location -6/Factory Parts ------- > --- POWER (2) -------- Micro Nuclear Core > --- PROPULSION (4) --- Combat Airjet Gravmag Array > --- UTILITY (7) ------ Medium Storage Unit Experimental Sensor Array Improved Signal Interpreter Encrypted Comm Array Launcher Guidance Computer Improved Medium Armor Plating Hacking Suite > --- WEAPON (2) ------- Mini Grenade Launcher Heavy Pick > --- INVENTORY (10) --- Large Storage Unit Propulsion Shielding Improved Utility Shielding Hardened Medium Armor Plating Layered Medium Armor Plating Trap Extractor (4/4 Dirty Bomb) Firepult Proton Missile Launcher Makeshift Hammer Peak State ------------ > --- POWER ------------ Micro Nuclear Core Micro Nuclear Core > --- PROPULSION ------- Combat Airjet Combat Airjet Gravmag Array > --- UTILITY ---------- Medium Storage Unit Experimental Sensor Array Improved Signal Interpreter Encrypted Comm Array Launcher Guidance Computer Improved Medium Armor Plating Hacking Suite > --- WEAPON ----------- Mini Grenade Launcher Heavy Pick > --- INVENTORY -------- Large Storage Unit Propulsion Shielding Improved Utility Shielding Layered Medium Armor Plating Trap Extractor Firepult Proton Missile Launcher Makeshift Hammer [Rating: 68] Favorites ----------- Power Micro Nuclear Core Engine Ion Engine Power Core Micro Nuclear Core Propulsion Combat Airjet Treads Light Treads Leg Improved Aluminum Leg Wheel Wheel Hover Unit Combat Airjet Utility Medium Storage Unit Device Experimental Sensor Array Storage Medium Storage Unit Processor Launcher Guidance Computer Hackware Hacking Suite Protection Improved Medium Armor Plating Weapon Mini Grenade Launcher Energy Gun Arc Projector Energy Cannon Firepult Ballistic Gun Heavy Assault Rifle Launcher Mini Grenade Launcher Impact Weapon Makeshift Hammer Slashing Weapon Great Axe Piercing Weapon Heavy Pick Special Melee Weapon Datajack Build | -11 -10 -10 -10 -9 -8 -8 -7 -7 -7 -7 -6 -6 ------- Run | Yrd Mat Min Exi Min Mat Gar Fac Low Low Dat Pro Fac Slots Evolved 8 | . . . . . 4 . 2 . . . . 2 Power 1 | . . . . . . . . . . . . 1 Propulsion 2 | . . . . . 1 . 1 . . . . . Utility 5 | . . . . . 3 . 1 . . . . 1 Weapon . | . . . . . . . . . . . . . Parts Attached 96 | 9 9 1 4 9 11 25 5 2 7 6 4 4 Power 9 | 2 . . 1 1 1 2 1 . . . . 1 Engine 3 | 2 . . 1 . . . . . . . . . Core 6 | . . . . 1 1 2 1 . . . . 1 Reactor . | . . . . . . . . . . . . . Propulsion 15 | 3 2 . . 4 3 . . . . 1 1 1 Treads 1 | 1 . . . . . . . . . . . . Leg 6 | . 2 . . 4 . . . . . . . . Wheel 2 | 2 . . . . . . . . . . . . Hover 6 | . . . . . 3 . . . . 1 1 1 Flight . | . . . . . . . . . . . . . Utility 34 | 2 2 . . 1 5 9 4 . 6 1 2 2 Device 10 | 1 . . . . 1 1 1 . 3 . 1 2 Storage 2 | 1 1 . . . . . . . . . . . Processor 3 | . 1 . . . . . 2 . . . . . Hackware 1 | . . . . . 1 . . . . . . . Protection 18 | . . . . 1 3 8 1 . 3 1 1 . Artifact . | . . . . . . . . . . . . . Weapon 38 | 2 5 1 3 3 2 14 . 2 1 4 1 . Energy Gun 2 | . . . . . . 2 . . . . . . Energy Cannon 2 | . . . . . . 1 . . . 1 . . Ballistic Gun 15 | 2 3 1 2 2 1 4 . . . . . . Ballistic Cannon . | . . . . . . . . . . . . . Launcher 8 | . 2 . . 1 . 4 . . . . 1 . Special Weapon . | . . . . . . . . . . . . . Impact Weapon 1 | . . . . . . . . . . 1 . . Slashing Weapon 4 | . . . . . 1 3 . . . . . . Piercing Weapon 3 | . . . . . . . . 1 1 1 . . Special Melee Weapon 3 | . . . 1 . . . . 1 . 1 . . Unidentified Prototypes 1 | . . . . . 1 . . . . . . . Parts Lost 15 | . . . . 2 1 7 . . . 3 . 2 Power 3 | . . . . . 1 1 . . . . . 1 Propulsion 4 | . . . . 2 . . . . . 1 . 1 Utility 7 | . . . . . . 5 . . . 2 . . Weapon 1 | . . . . . . 1 . . . . . . Highest Loss Streak 3 | . . . . 2 1 3 . . . 3 . 2 To Critical Strikes . | . . . . . . . . . . . . . Average Slot Usage (%) 92 | . 99 100 91 85 86 92 86 92 92 86 89 92 Engine 5 | . 14 14 14 5 . . . . . . . . Core 5 | . . . . 8 9 8 7 7 7 7 7 12 Leg 10 | . 11 28 28 27 1 . . . . . . . Hover 13 | . . . . . 25 27 23 23 23 21 23 19 Device 2 | . 7 . . . 4 . 1 . . . 4 13 Storage 10 | . 14 14 14 14 9 9 7 7 7 7 7 6 Processor 9 | . 5 14 14 4 . . 7 15 15 15 15 13 Hackware 4 | . . . . . 8 9 7 7 7 7 7 6 Protection 9 | . . . . 9 20 21 15 15 14 13 8 6 Ballistic Gun 10 | . 27 27 14 14 8 3 . . . . . . Launcher 3 | . . . . . . 5 7 7 7 2 2 6 Slashing Weapon 2 | . . . . . . 7 7 5 . . . . Piercing Weapon 1 | . . . . . . . . 1 6 6 7 6 Naked Turns . | . . . . . . . . . . . . . Heaviest Build 52 | 14 22 21 23 33 34 38 35 35 34 52 30 34 Greatest Support 44 | 20 26 26 26 33 36 36 36 36 36 44 44 44 Greatest Overweight (x) 8 | 1 2 . . 1 1 8 . . . 1 . 1 Average Overweight (x) . | . . . . . . . . . . . . . Largest Inventory Capacity 10 | 8 10 10 10 10 10 10 10 10 10 10 10 10 Average Capacity 9 | 7 9 10 10 10 10 10 10 10 10 10 10 10 Most Carried 10 | 6 10 10 10 10 10 10 10 10 10 10 9 10 Average Carried 9 | 3 8 10 9 9 8 9 9 9 9 9 9 9 Final Capacity 10 | 8 10 10 10 10 10 10 10 10 10 10 10 10 Final Carried 10 | 6 10 10 10 10 10 10 9 10 10 10 9 10 Class Distribution -------------------- 62% | Scavenger-Mutant 37% | Mutant Dominant Class ---------------- Mutant | -10/Materials Mutant | -10/Mines Mutant | -10/Exiles Scavenger-Mutant | -9/Mines Scavenger-Mutant | -8/Materials Scavenger-Mutant | -8/Garrison Scavenger-Mutant | -7/Factory Scavenger-Mutant | -7/Lower Caves Scavenger-Mutant | -7/Lower Caves Scavenger-Mutant | -7/Data Miner Scavenger-Mutant | -6/Proximity Caves Scavenger-Mutant | -6/Factory Resources | -11 -10 -10 -10 -9 -8 -8 -7 -7 -7 -7 -6 -6 ----------- Run | Yrd Mat Min Exi Min Mat Gar Fac Low Low Dat Pro Fac Matter Collected 1778 | 330 146 120 . 110 115 335 22 163 240 45 . 152 Remotely . | . . . . . . . . . . . . . Salvage Created 3345 | 114 262 221 . 431 425 771 47 131 375 218 . 350 Parts 172 | 5 21 8 . 23 21 52 2 2 17 7 . 14 Haulers Intercepted 1 | . 1 . . . . . . . . . . . Recyclers Shooed 1 | . . . . 1 . . . . . . . . Parts Field Recycled . | . . . . . . . . . . . . . Retrieved Matter . | . . . . . . . . . . . . . Parts Self-Destructed 14 | . . . . . . . . 1 13 . . . Prevented 2 | . . . . . . . . . 2 . . . Kills | -11 -10 -10 -10 -9 -8 -8 -7 -7 -7 -7 -6 -6 ------- Run | Yrd Mat Min Exi Min Mat Gar Fac Low Low Dat Pro Fac Combat Hostiles Destroyed 76 | . 5 5 . 10 8 24 2 3 8 2 . 9 Melee 7 | . . . . . . 5 . . 2 . . . Guns 30 | . 3 4 . 10 8 5 . . . . . . AOE 36 | . 2 1 . . . 13 2 3 6 . . 9 Classes Destroyed 15 | 2 3 1 . 3 1 2 . . 2 . . 1 Worker 2 | . . 1 . . . . 1 . . . . . Builder 1 | . . . . . . . . . . . . 1 Tunneler 1 | 1 . . . . . . . . . . . . Hauler 1 | . 1 . . . . . . . . . . . Recycler 3 | 1 . . . 1 . . . . . . . 1 Minesweeper 1 | . . . . . . . . . 1 . . . Operator 1 | . 1 . . . . . . . . . . . Swarmer 18 | . . . . 4 . 8 . . . . . 6 Cutter 2 | . . . . . . 2 . . . . . . Grunt 38 | . 5 5 . 3 5 7 2 3 5 . . 3 Brawler 3 | . . . . 1 1 . . . 1 . . . Duelist 1 | . . . . . . . . . 1 . . . Sentry 8 | . . . . . 2 5 . . 1 . . . Demolisher 2 | . . . . 2 . . . . . . . . Behemoth 2 | . . . . . . 2 . . . . . . Enhanced Grunt 2 | . . . . . . . . . . 2 . . Decomposer 3 | . . . . . . . . 3 . . . . Best Kill Streak 11 | 2 3 3 . 4 4 11 2 3 4 3 . 4 Combat Bots Only 11 | . 3 3 . 4 4 11 2 3 4 2 . 3 Max Kills in Single Turn 3 | 1 2 1 . 2 2 3 1 1 2 1 . 3 Gunslinging . | . . . . . . . . . . . . . Exploded 3 | . 2 1 . . . 3 1 1 2 . . 3 Melee 1 | . . . . . . 1 . . 1 . . . Uniques/NPCs Destroyed 1 | . . . . . . . . . . 1 . . Data Miner (-7/Data Miner) Combat | -11 -10 -10 -10 -9 -8 -8 -7 -7 -7 -7 -6 -6 -------- Run | Yrd Mat Min Exi Min Mat Gar Fac Low Low Dat Pro Fac Hostile Shots Fired 291 | . 9 19 . 18 21 102 8 5 35 31 . 43 Missed 98 | . 1 5 . 3 8 32 5 2 12 10 . 20 Damage Taken 4011 | . 105 217 . 375 216 1228 48 44 318 984 . 476 Core 784 | . 11 27 . 16 47 156 . . 146 284 . 97 Absorbed by Shields . | . . . . . . . . . . . . . Redirected to Shielding 103 | . . . . . 20 83 . . . . . . Ignored by Resistances 56 | . . . . . . 56 . . . . . . Regen/Repaired (Parts) 170 | . . . . . . . . . . . . 170 Core Remaining (%) 69 | 100 . . . 78 . 63 . . . . 38 . Volleys Fired 106 | 10 13 16 . . . 31 7 5 12 2 . 10 Largest 2 | 2 2 2 . . . 1 1 1 1 1 . 1 Hottest 250 | 40 46 43 . . . 250 30 30 30 250 . 30 Shots Fired 246 | 20 25 31 . 28 33 73 7 5 12 2 . 10 Gun 191 | 20 24 30 . 28 33 56 . . . . . . Cannon 3 | . . . . . . 1 . . . 2 . . Launcher 52 | . 1 1 . . . 16 7 5 12 . . 10 Special . | . . . . . . . . . . . . . Kinetic 177 | 20 24 30 . 28 33 42 . . . . . . Thermal 3 | . . . . . . 1 . . . 2 . . Explosive 52 | . 1 1 . . . 16 7 5 12 . . 10 Electromagnetic 14 | . . . . . . 14 . . . . . . Robot Hit Streak 27 | 5 14 13 . 9 7 27 . 5 9 3 . 4 Robot Miss Streak 3 | 1 2 3 . 3 2 2 . . 1 2 . 1 Penetration Max . | . . . . . . . . . . . . . Secondary Targets 1 | . . 1 . . . . . . . . . . Max Gunslinging Chain 1 | . . 1 . . . . . . . . . . Autonomous 103 | . . . . 28 33 42 . . . . . . Shots Hit Robots 192 | 14 19 21 4 18 26 53 1 8 12 7 . 9 Core Hits 145 | 3 11 12 . 13 11 31 6 7 14 14 . 23 Critical Kills . | . . . . . . . . . . . . . Critical Parts Destroyed 1 | . . 1 . . . . . . . . . . Critical Strikes 5 | . . 1 . . . 1 . . 2 1 . . Destroy 1 | . . 1 . . . . . . . . . . Sever 1 | . . . . . . 1 . . . . . . Impale 3 | . . . . . . . . . 2 1 . . Melee Attacks 67 | . . . 4 . 2 25 4 3 9 9 3 8 Impact 1 | . . . . . . . . . . 1 . . Slashing 33 | . . . . . 2 25 4 2 . . . . Piercing 28 | . . . . . . . . 1 9 7 3 8 Sneak Attacks 12 | . . . 4 . . . 1 3 1 2 . 1 Combat Hostiles . | . . . . . . . . . . . . . Follow-up Attacks 1 | . . . . . . . . . . 1 . . Damage Inflicted 8231 | 163 338 386 . 574 840 2632 416 627 915 381 . 959 Guns 3334 | 163 229 336 . 574 840 1192 . . . . . . Cannons 83 | . . . . . . 58 . . . 25 . . Explosions 3552 | . 109 50 . . . 1007 350 376 583 200 . 877 Melee 1262 | . . . . . . 375 66 251 332 156 . 82 Ramming . | . . . . . . . . . . . . . Kinetic 3323 | 163 229 336 . 574 840 1181 . . . . . . Thermal 432 | . . . . . . 207 . . . 225 . . Explosive 3203 | . 109 50 . . . 858 350 376 583 . . 877 Electromagnetic 11 | . . . . . . 11 . . . . . . Impact . | . . . . . . . . . . . . . Slashing 626 | . . . . . . 375 66 185 . . . . Piercing 636 | . . . . . . . . 66 332 156 . 82 Highest Corruption . | . . . . . . . . . . . . . Average Corruption . | . . . . . . . . . . . . . Corruption Purged . | . . . . . . . . . . . . . Corruption Blocked . | . . . . . . . . . . . . . Overload Shots . | . . . . . . . . . . . . . Overflow Damage 269 | . . . . . . 21 26 146 43 . . 33 Projectiles . | . . . . . . . . . . . . . Explosions 74 | . . . . . . 21 26 . . . . 27 Melee 195 | . . . . . . . . 146 43 . . 6 Knockbacks . | . . . . . . . . . . . . . Impact . | . . . . . . . . . . . . . Kinetic . | . . . . . . . . . . . . . Secondary . | . . . . . . . . . . . . . Self-Inflicted Damage 446 | . 18 . . . . 151 . . 71 . . 206 Shots 14 | . 1 . . . . 6 . . 2 . . 5 Rammed . | . . . . . . . . . . . . . Targets Rammed . | . . . . . . . . . . . . . Kicked . | . . . . . . . . . . . . . Crushed . | . . . . . . . . . . . . . Highest Temperature 391 | . 7 3 . . 5 204 6 10 5 391 . 15 Average Temperature 69 | . 4 3 . . 5 65 3 4 3 203 . 7 Received Heat Transfer 819 | . 48 120 . . 126 333 27 27 69 . . 69 Siege Activations . | . . . . . . . . . . . . . Robots Corrupted . | . . . . . . . . . . . . . Combat Hostiles . | . . . . . . . . . . . . . Parts Fried . | . . . . . . . . . . . . . Impact Corruptions . | . . . . . . . . . . . . . Robots Melted 3 | . . . . . . 1 . . . 2 . . Combat Hostiles 3 | . . . . . . 1 . . . 2 . . Parts Melted 10 | . . . . . . 3 . . . 7 . . Heat Transferred 2560 | . . . . . . 720 . . . 1840 . . Parts Sabotaged . | . . . . . . . . . . . . . Parts Stolen . | . . . . . . . . . . . . . Parts Stripped . | . . . . . . . . . . . . . Power Chain Reactions 1 | . . . . . . 1 . . . . . . Alert | -11 -10 -10 -10 -9 -8 -8 -7 -7 -7 -7 -6 -6 ------- Run | Yrd Mat Min Exi Min Mat Gar Fac Low Low Dat Pro Fac Peak Influence 1070 | 10 165 143 . 227 313 1070 660 . . . . 255 Initial 561 | . 6 1 . . 10 203 561 . . . . . Average 281 | 3 53 61 . 97 188 747 615 . . . . 106 Maximum Alert Level 3 | . . . . 1 1 3 2 . . . . 1 Low Security (%) 62 | 100 100 100 . 86 51 . . . . . . 89 Level 1 8 | . . . . 13 48 13 . . . . . 10 Level 2 15 | . . . . . . 25 100 . . . . . Level 3 13 | . . . . . . 61 . . . . . . Level 4 . | . . . . . . . . . . . . . Level 5 . | . . . . . . . . . . . . . High Security . | . . . . . . . . . . . . . Max Security . | . . . . . . . . . . . . . Squads Dispatched 9 | . 2 . . . 1 . 1 . . . . 5 Investigation 2 | . 1 . . . . . . . . . . 1 Extermination 2 | . . . . . . . 1 . . . . 1 Reinforcement 5 | . 1 . . . 1 . . . . . . 3 Assault . | . . . . . . . . . . . . . Garrison . | . . . . . . . . . . . . . Intercept . | . . . . . . . . . . . . . Searches Triggered . | . . . . . . . . . . . . . Construction Impeded . | . . . . . . . . . . . . . Haulers Reinforced . | . . . . . . . . . . . . . Active Scanning Responses . | . . . . . . . . . . . . . Cargo Convoy Interrupts . | . . . . . . . . . . . . . Stealth | -11 -10 -10 -10 -9 -8 -8 -7 -7 -7 -7 -6 -6 --------- Run | Yrd Mat Min Exi Min Mat Gar Fac Low Low Dat Pro Fac Distress Signals 2 | . . . . 1 1 . . . . . . . Communications Jammed . | . . . . . . . . . . . . . Distress Signals . | . . . . . . . . . . . . . Times Spotted 91 | . 7 5 . 10 12 23 5 3 8 4 . 14 Peak Tracking Total 7 | . 5 3 . 7 4 7 4 3 4 4 . 4 Tactical Retreats 5 | . . 1 . 1 . 1 1 . . . . 1 Traps | -11 -10 -10 -10 -9 -8 -8 -7 -7 -7 -7 -6 -6 ------- Run | Yrd Mat Min Exi Min Mat Gar Fac Low Low Dat Pro Fac Traps Triggered 3 | . 1 . . . . 1 . . . . . 1 Indirectly . | . . . . . . . . . . . . . Trap Hack Attempts . | . . . . . . . . . . . . . Triggered . | . . . . . . . . . . . . . Disarmed . | . . . . . . . . . . . . . Reprogrammed . | . . . . . . . . . . . . . Reused . | . . . . . . . . . . . . . Traps Extracted 1 | . . . . . . . . . 1 . . . Installed . | . . . . . . . . . . . . . Triggered 4 | . . . . . . . . . 4 . . . Most Traps Carried 4 | . . . . . . . . . 4 4 4 4 Machines | -11 -10 -10 -10 -9 -8 -8 -7 -7 -7 -7 -6 -6 ---------- Run | Yrd Mat Min Exi Min Mat Gar Fac Low Low Dat Pro Fac Machines Disabled 12 | . . . . 1 1 9 . . . . . 1 Max in Single Turn 2 | . . . . 1 1 2 . . . . . 1 Garrison Access 1 | . . . . . . . 1 . . . . . Garrison Relay 2 | . . . . . . 2 . . . . . . Phase Generator 1 | . . . . . . 1 . . . . . . Machines Repaired . | . . . . . . . . . . . . . Machines Dismantled . | . . . . . . . . . . . . . Machines Sabotaged . | . . . . . . . . . . . . . Overloaded Fab Kills . | . . . . . . . . . . . . . Hacking | -11 -10 -10 -10 -9 -8 -8 -7 -7 -7 -7 -6 -6 --------- Run | Yrd Mat Min Exi Min Mat Gar Fac Low Low Dat Pro Fac Machines Accessed 27 | . 3 . 2 . 3 3 5 1 1 4 . 5 Terminals 11 | . 3 . . . 2 3 1 . . . . 2 Fabricators 1 | . . . . . . . 1 . . . . . Repair Stations 1 | . . . . . . . . . . . . 1 Recycling Units 1 | . . . . . . . . . . . . 1 Scanalyzers 2 | . . . . . . . 1 . . . . 1 Garrison Access 3 | . . . . . 1 . 2 . . . . . Total Hacks 85 | . 12 . 5 . 7 4 12 1 1 30 . 13 Successful 56 | . 4 . 5 . 3 1 5 1 1 30 . 6 Failed 28 | . 7 . . . 4 3 7 . . . . 7 Catastrophic 3 | . 1 . . . . . 1 . . . . 1 Database Lockouts 1 | . 1 . . . . . . . . . . . Manual 27 | . 9 . 3 . 6 1 . . . . . 8 Terminals 31 | . 12 . . . 6 4 3 . . . . 6 Fabricators 4 | . . . . . . . 4 . . . . . Repair Stations 2 | . . . . . . . . . . . . 2 Recycling Units 4 | . . . . . . . . . . . . 4 Scanalyzers 4 | . . . . . . . 3 . . . . 1 Garrison Access 3 | . . . . . 1 . 2 . . . . . Terminal Hacks 45 | . 2 . 5 . 1 1 2 1 1 30 . 2 Record 15 | . . . 4 . . . . . . 11 . . Part Schematic 12 | . . . . . 1 . . . . 11 . . Robot Schematic 5 | . . . . . . . . . . 5 . . Robot Analysis 1 | . 1 . . . . . . . . . . . Prototype ID Bank 3 | . . . . . . . . . . 3 . . Open Door 2 | . . . . . . . . 1 1 . . . Open DSF 1 | . . . . . . . . . . . . 1 Alert Level 1 | . . . . . . . 1 . . . . . Unreport Threat 1 | . . . . . . . 1 . . . . . Recall Extermination 1 | . . . . . . . . . . . . 1 Registered Components 1 | . 1 . . . . . . . . . . . Garrison Registry 1 | . . . . . . 1 . . . . . . Derelict Proto ID Bank 1 | . . . 1 . . . . . . . . . Fabricator Hacks 1 | . . . . . . . 1 . . . . . Network Status 1 | . . . . . . . 1 . . . . . Repair Station Hacks 2 | . . . . . . . . . . . . 2 Scan Component 1 | . . . . . . . . . . . . 1 Repair 1 | . . . . . . . . . . . . 1 Recycling Unit Hacks 1 | . . . . . . . . . . . . 1 Report Inventory 1 | . . . . . . . . . . . . 1 Scanalyzer 1 | . . . . . . . 1 . . . . . Insert Component 1 | . . . . . . . 1 . . . . . Garrison Access Hacks 2 | . . . . . 1 . 1 . . . . . Unlock Access 1 | . . . . . 1 . . . . . . . Seal Access 1 | . . . . . . . 1 . . . . . Unauthorized Hacks 4 | . 2 . . . 1 . . . . . . 1 Terminals 3 | . 2 . . . 1 . . . . . . . Track 2 | . 1 . . . 1 . . . . . . . Operators 1 | . 1 . . . . . . . . . . . Fabricators . | . . . . . . . . . . . . . Repair Stations . | . . . . . . . . . . . . . Recycling Units 1 | . . . . . . . . . . . . 1 Mask 1 | . . . . . . . . . . . . 1 Scanalyzers . | . . . . . . . . . . . . . Garrison Access . | . . . . . . . . . . . . . Data Cores Recovered . | . . . . . . . . . . . . . Used . | . . . . . . . . . . . . . Hacking Detections 16 | . 3 . . . 2 2 4 . . . . 5 Full Trace Events 1 | . . . . . . . . . . . . 1 Feedback Events . | . . . . . . . . . . . . . Feedback Blocked . | . . . . . . . . . . . . . Robot Schematics Acquired 5 | . . . . . . . . . . 5 . . Robots Built . | . . . . . . . . . . . . . Authchips . | . . . . . . . . . . . . . Time . | . . . . . . . . . . . . . Total Robot Build Rating . | . . . . . . . . . . . . . Part Schematics Acquired 12 | . . . . . 1 . . . . 11 . . Parts Built . | . . . . . . . . . . . . . Authchips . | . . . . . . . . . . . . . Time . | . . . . . . . . . . . . . Total Part Build Rating . | . . . . . . . . . . . . . Parts Repaired 1 | . . . . . . . . . . . . 1 Time 25 | . . . . . . . . . . . . 25 Parts Recycled . | . . . . . . . . . . . . . Recycled Matter . | . . . . . . . . . . . . . Retrieved Matter . | . . . . . . . . . . . . . Retrieved Components . | . . . . . . . . . . . . . Parts Scanalyzed 1 | . . . . . . . 1 . . . . . Part Schematics Acquired . | . . . . . . . . . . . . . Parts Damaged . | . . . . . . . . . . . . . Bothacking | -11 -10 -10 -10 -9 -8 -8 -7 -7 -7 -7 -6 -6 ------------ Run | Yrd Mat Min Exi Min Mat Gar Fac Low Low Dat Pro Fac Used RIF Installer . | . . . . . . . . . . . . . Robots Hacked 5 | . . . 4 . . . . . . 1 . . Non-combat 3 | . . . 3 . . . . . . . . . Combat 2 | . . . 1 . . . . . . 1 . . Robot Hacks Applied 5 | . . . 4 . . . . . . 1 . . parse_system 5 | . . . 4 . . . . . . 1 . . Relay Couplers Released 8 | . . . . . . 8 . . . . . . Machine Destruction 8 | . . . . . . 8 . . . . . . Fabnet Peak Effective % . | . . . . . . . . . . . . . Robots Rewired 5 | . . . . . . 5 . . . . . . Allies Hacked . | . . . . . . . . . . . . . Hacks Repelled . | . . . . . . . . . . . . . Allies | -11 -10 -10 -10 -9 -8 -8 -7 -7 -7 -7 -6 -6 -------- Run | Yrd Mat Min Exi Min Mat Gar Fac Low Low Dat Pro Fac Total Allies 8 | . . 3 . . . 5 . . . . . . Largest Group 5 | . . 3 3 3 . 5 . . . . . . Highest-Rated Group 40 | . . 40 40 40 . 24 . . . . . . Highest-Rated Ally 16 | . . 16 16 16 . 5 . . . . . . Total Orders . | . . . . . . . . . . . . . Ally Attacks 38 | . . . . 9 . 29 . . . . . . Total Damage 283 | . . . . 87 . 196 . . . . . . Kills 3 | . . . . 1 . 2 . . . . . . Allies Corrupted . | . . . . . . . . . . . . . Allies Melted . | . . . . . . . . . . . . . Intel | -11 -10 -10 -10 -9 -8 -8 -7 -7 -7 -7 -6 -6 ------- Run | Yrd Mat Min Exi Min Mat Gar Fac Low Low Dat Pro Fac Robot Analysis Total 1 | . 1 . . . . . . . . . . . Derelict Logs Recovered 6 | . . 2 . 1 . . . 2 . . 1 . Drone Launches . | . . . . . . . . . . . . . Drone Recoveries . | . . . . . . . . . . . . . Exploration | -11 -10 -10 -10 -9 -8 -8 -7 -7 -7 -7 -6 -6 ------------- Run | Yrd Mat Min Exi Min Mat Gar Fac Low Low Dat Pro Fac Turns Passed 5237 | 108 462 812 448 492 183 826 338 303 554 140 141 430 Spaces Moved 3972 | 70 275 236 357 356 196 629 326 374 469 127 192 365 Core 20 | 5 . . . . . 15 . . . . . . Treads 1 | 1 . . . . . . . . . . . . Legs 1090 | . 137 236 357 356 4 . . . . . . . Wheels 202 | 64 138 . . . . . . . . . . . Hover 2659 | . . . . . 192 614 326 374 469 127 192 365 Flight . | . . . . . . . . . . . . . Fastest Speed 50 | 50 95 120 120 120 74 74 74 74 74 66 66 66 Average Speed 88 | 83 108 120 120 120 76 83 74 74 74 75 66 67 Slowest Speed 450 | 160 190 120 120 190 190 450 74 74 74 129 66 147 Overloaded Moves . | . . . . . . . . . . . . . Propulsion Burnouts . | . . . . . . . . . . . . . Robots Hopped . | . . . . . . . . . . . . . Cave-ins Triggered . | . . . . . . . . . . . . . Exploration Rate (%) 45 | 5 47 43 69 69 18 74 10 55 67 77 44 15 Regions Visited 12 Branch Regions 7 Pre-discovered Areas 4 | . . . 1 1 . . . 1 . 1 . . Known Exits Taken 6 | . . . . . 1 . 1 1 1 1 1 . Unknown Exits Taken 5 | 1 1 1 1 1 . . . . . . . . Scrap Searched 9 | . . . . 1 . . . 2 5 . 1 . Spaces Dug 79 | . . . . . 2 42 3 . 15 . 3 14 Terrain Destroyed 468 | . 9 2 . 17 20 255 4 11 64 . 3 83 Melee 15 | . . . . . 2 1 3 . . . 3 6 Projectile 39 | . . . . 17 18 4 . . . . . . AOE 414 | . 9 2 . . . 250 1 11 64 . . 77 Terrain Rammed . | . . . . . . . . . . . . . Walls Destroyed . | . . . . . . . . . . . . . Machines Disabled . | . . . . . . . . . . . . . Actions | -11 -10 -10 -10 -9 -8 -8 -7 -7 -7 -7 -6 -6 --------- Run | Yrd Mat Min Exi Min Mat Gar Fac Low Low Dat Pro Fac Total 5441 | 96 421 733 374 421 227 857 409 388 641 154 199 521 Wait 1060 | 3 101 481 5 40 8 84 62 3 138 4 . 131 Move 3960 | 69 274 235 356 355 196 627 325 373 468 126 191 365 Hop . | . . . . . . . . . . . . . Pick Up 54 | 5 11 . 1 8 4 12 2 1 4 4 . 2 Fast Attach 31 | 7 3 . 1 1 3 9 2 1 . 1 1 2 Attach 36 | . . . . 5 8 13 2 . . 4 2 2 Detach 11 | . . . . 1 4 3 1 . . . 1 1 Swap 29 | 2 6 1 3 3 . 3 1 1 7 1 1 . Drop 55 | . 13 . 4 8 2 17 3 1 3 4 . . Fire 106 | 10 13 16 . . . 31 7 5 12 2 . 10 Melee 66 | . . . 4 . 2 25 4 3 9 8 3 8 Ram . | . . . . . . . . . . . . . Kick . | . . . . . . . . . . . . . Crush . | . . . . . . . . . . . . . Escape Stasis 13 | . . . . . . 13 . . . . . . Rewire 20 | . . . . . . 20 . . . . . . Trap . | . . . . . . . . . . . . . Miscellaneous . | . . . . . . . . . . . . . Route ------- -11/Scrapyard -10/Materials (discovered 2 exits: [*Mat] / [*Min]) -10/Mines (discovered 3 exits: [*Mat] / *Exi / [*Sub]) -10/Exiles -9/Mines -8/Materials -8/Garrison (discovered 3 exits: *Fac x3) -7/Factory -7/Lower Caves -7/Lower Caves (discovered 2 exits: *Fac / *Dat) -7/Data Miner -6/Proximity Caves -6/Factory (discovered 1 exit: Fac) History --------- Turn | Location | Event 23 | -11/Scrapyard | Discovered new exit (range 15) 109 | -11/Scrapyard | Entered Materials 295 | -10/Materials | Discovered new exit (range 16) 306 | -10/Materials | Build established: Mutant 340 | -10/Materials | Central database locked down 539 | -10/Materials | Discovered new exit (range 16) 571 | -10/Materials | Entered Mines 653 | -10/Mines | Met a Derelict bent on vengeance 681 | -10/Mines | Learned Materials interactive machine intel 711 | -10/Mines | Learned Materials terminal intel 796 | -10/Mines | Deemed a non-threat by the Exiles lab entrance 796 | -10/Mines | Discovered new exit (range 5) 1298 | -10/Mines | Discovered new exit (range 9) 1304 | -10/Mines | Discovered new exit (range 8) 1312 | -10/Mines | Assisted by bots powering up and referring to "LRC-V3" 1383 | -10/Mines | Entered Exiles 1383 | -10/Exiles | Accompanied by 3 allies 1413 | -10/Exiles | Met 8R-AWN 1440 | -10/Exiles | Met EX-HEX 1489 | -10/Exiles | Met EX-DEC 1494 | -10/Exiles | Learned location of Zion (-6) 1541 | -10/Exiles | Met EX-BIN 1584 | -10/Exiles | Opened EX-Vault 1596 | -10/Exiles | Found AWS/Gauss 1600 | -10/Exiles | Found Firepult 1628 | -10/Exiles | Warned to stay clear of 0b10 Research branches 1812 | -10/Exiles | Discovered new exit (range 14) 1831 | -10/Exiles | Stole two prototypes: AWS/Gauss, Firepult 1831 | -10/Exiles | Entered Mines 1831 | -9/Mines | Accompanied by 3 allies 1881 | -9/Mines | Assembled infested the area 1886 | -9/Mines | Assisted by a Guerilla fighting off Assembled 1928 | -9/Mines | Learned location of Storage (-9) 1939 | -9/Mines | Lost 4 allies 2273 | -9/Mines | Found a damaged Exp. Sensor Array with a note attached 2277 | -9/Mines | Found Prototype Device 2298 | -9/Mines | Build established: Scavenger-Mutant 2309 | -9/Mines | Discovered new exit (range 11) 2323 | -9/Mines | Entered Materials 2323 | -8/Materials | Evolved 4 slots: Propulsion x1, Utility x3 2323 | -8/Materials | Identified Exp. Sensor Array 2324 | -8/Materials | Loaded intel: 19 interactive machine locations 2325 | -8/Materials | Loaded intel: 12 terminal locations 2506 | -8/Materials | Identified exit to Garrison 2506 | -8/Materials | Entered Garrison 2534 | -8/Garrison | Spotted B-75 Beast 2534 | -8/Garrison | Spotted B-75 Beast 2544 | -8/Garrison | Destroyed B-75 Beast 2568 | -8/Garrison | Destroyed B-75 Beast 2600 | -8/Garrison | Triggered checkpoint 2601 | -8/Garrison | Triggered checkpoint 2659 | -8/Garrison | Lost 3 parts (2u1w) 2665 | -8/Garrison | Destroyed 11 combat bots 2690 | -8/Garrison | Discovered new exit (range 12) 2712 | -8/Garrison | Triggered checkpoint 2761 | -8/Garrison | Garrison Relay disabled 2828 | -8/Garrison | Triggered checkpoint 2935 | -8/Garrison | Phase Generator disabled 3086 | -8/Garrison | Garrison Relay disabled 3149 | -8/Garrison | Lost 5 allies 3151 | -8/Garrison | Triggered checkpoint 3160 | -8/Garrison | Triggered checkpoint 3169 | -8/Garrison | Found Launcher Loader 3259 | -8/Garrison | Discovered new exit (range 63) 3259 | -8/Garrison | Discovered new exit (range 64) 3259 | -8/Garrison | Discovered new exit (range 11) 3285 | -8/Garrison | Attempted to access garrison exit controls, blocked by remote lockdown 3332 | -8/Garrison | Entered Factory 3332 | -7/Factory | Evolved 2 slots: Propulsion x1, Utility x1 3666 | -7/Factory | Discovered new exit (range 6) 3669 | -7/Factory | Identified exit to Lower Caves 3670 | -7/Factory | Entered Lower Caves 3676 | -7/Lower Caves | Met a Warlord Commander 3676 | -7/Lower Caves | Learned Factory non-interactive machine intel 3678 | -7/Lower Caves | Learned location of Warlord (-4) 3679 | -7/Lower Caves | Warlord Commander delivered Encrypted Comm Array 3682 | -7/Lower Caves | Found Encrypted Comm Array 3698 | -7/Lower Caves | Encountered a Warlord checkpoint 3889 | -7/Lower Caves | Discovered new exit (range 9) 3894 | -7/Lower Caves | Identified exit to Lower Caves 3952 | -7/Lower Caves | Learned 4 Factory zone layouts 3973 | -7/Lower Caves | Entered another Lower Caves area 4130 | -7/Lower Caves | Discovered new exit (range 15) 4481 | -7/Lower Caves | Attracted the attention of an 0b10 checkpoint 4516 | -7/Lower Caves | Discovered new exit (range 16) 4526 | -7/Lower Caves | Identified exit to Data Miner 4527 | -7/Lower Caves | Entered Data Miner 4527 | -7/Data Miner | Discovered new exit (range 6) 4542 | -7/Data Miner | Met Data Miner 4556 | -7/Data Miner | Learned location of Section 7 (-2) 4556 | -7/Data Miner | Acquired the access code to Warlord's prototype stash 4566 | -7/Data Miner | Received God Mode back door access code from Data Miner 4595 | -7/Data Miner | Destroyed Data Miner 4617 | -7/Data Miner | Data Conduit disabled 4654 | -7/Data Miner | Core integrity fell below 50% 4667 | -7/Data Miner | Identified exit to Proximity Caves 4667 | -7/Data Miner | Entered Proximity Caves 4683 | -6/Proximity Caves | Lost 3 parts (1n2u) 4772 | -6/Proximity Caves | Learned 8 Factory zone layouts 4798 | -6/Proximity Caves | Discovered new exit (range 15) 4807 | -6/Proximity Caves | Identified exit to Factory 4808 | -6/Proximity Caves | Entered Factory 4808 | -6/Factory | Evolved 2 slots: Power x1, Utility x1 4809 | -6/Factory | Identified exit to Factory 4810 | -6/Factory | Loaded intel: 249 non-interactive machine locations 4853 | -6/Factory | Repaired Gravmag Array 5238 | -6/Factory | Self-destructed Last Messages --------------- 05211_ U-05 Engineer lays Concrete. 05216_ U-05 Engineer builds a Wall. 05218_ The unstable cave ceiling collapses. 05223_ S-27 Virus destroyed. 05225_ Cmb. Airjet destroyed. 05225_ S-27 Virus destroyed. 05227_ Destroyed VTOL Module. 05227_ S-27 Virus destroyed. 05227_ Mic. Nuclear Core destroyed. 05227_ Destroyed Mic. Nuclear Core. 05229_ The unstable cave ceiling collapses. 05229_ Acquired 2 matter. 05238_ Connecting with Recycling Unit... >>Recycling(Report) Matter reserves: 0 Inventory: Empty >>Trojan(Mask) Trojan loaded successfully. Testing... Masking routine running. Map ----- +----------------------------------------------------+ | ?????????????????????"?"?" | | ?????????????????????"?"?"## | | ?????????????????????"?"?"## | | ?????????????????????????### """ | | ???????????????????????????# """ | | ???????????????????????????# """ | | ???????????????????????????# | | ??????????????????????????????"""?? | | ??????????????##############??"""?? | | ??????????????# #??"""?? | | ??????????????# #??????? | | ??????????????# #??????? | | ??????????????# #??????? | | ??????????????# != #??????? | | ??????????????# != +??????? | | ??????????????# != #??????? | | ??????????????# #??????? | | ??????????????# ##?????? | | ??????????????# #?????? | | ??????????????# #??????? | | ??????????????# [ #??????? | | ??????##########+### #?????? | | ??????# # Y # # #????? | | ??????#! """ # * ### #? | | ??????# "Y" + [%* T ! #? | | ??????# @ # = ##### | | ??????#!] ! # # # #???? | | ??????#]] ########## ####### | | ??????########???????# # # # | | ?????????????????????#] # | | ?????????????????????# ] | | ?????????????????????# ] | | ?????????????????????# # | | ?????????????????????#] # | | ?????????????????????#### # #% | | ????????????????????????### # % | | ??????????????????????????### | | ??????????????????????????? | | ??????????????????????????## "T | | ???????????????????????????#### ### | | ??????????????????????????????# | | ??????????????????????????????# | | ??????????????????????????????# | | ??????????????????????????????# | | ??????????????????????????????# | | ??????????????????????????????# | | ?????????????????????????###### | | ????????????????????????? | | ????????????????????????? | | ????????????????????????? | +----------------------------------------------------+ Best States ------------- Heat Dissipation 37 Energy Generation 25 Energy Capacity 310 Matter Stores 300 Matter Capacity 300 Sight Range 16 Robot Scan Range 20 Terrain Scan Density 10 Armor Coverage 600 Resistance: TH 15 Resistance: EM 20 Propulsion Shielding 66 Evasion (%) 60 Launcher Accuracy 20 Recoil Reduction 1 Salvage Targeting 1 Offensive Hacking 10 Trap Extractor Capacity 4 Item Schematics ----------------- Lrg. Storage Unit | -8/Materials | Hacked Combat Drone Bay | -7/Data Miner | Free Lgt. Regenerative Plating | -7/Data Miner | Free Cld. Cesium-ion Thruster | -7/Data Miner | Free Thermal Defense Suite | -7/Data Miner | Free Com. Ion Cannon | -7/Data Miner | Free Cmb. Gravmag System | -7/Data Miner | Free Imp. Component Analysis Suite | -7/Data Miner | Free Variable Charge Gun | -7/Data Miner | Free Adv. System Restoration Module | -7/Data Miner | Free Adv. Hacking Suite | -7/Data Miner | Free Adv. Thermal Shield | -7/Data Miner | Free Robot Schematics ------------------ M-28 Smith | -7/Data Miner | Free G-47 Trooper | -7/Data Miner | Free W-25 Informer | -7/Data Miner | Free Y-54 Guardian | -7/Data Miner | Free P-60 Hacker | -7/Data Miner | Free Fabricated ------------ Nothing Alien Tech Used ----------------- None Achievements -------------- None Challenges ------------ None Game ------ Seed SupersonicThrusterWheel Manual? 0 Play Time 01:24:57 Cumulative 22.7 hours Start 2024.04.26 @ 10:35:38 End 2024.05.14 @ 22:26:21 Sessions 5 Manual Loads 0 Difficulty Rogue Special Mode None Game No. 16 Rogue 14 Adventurer 0 Explorer 2 Win Type - Total 0 Types 0/0/0/0/0/0/0/0/0 Lore% 18 Gallery% 36 Achievement% 31 Wizard Run 0 Options --------- Layout 2 ASCII 0 Keyboard 0 Movement Mouse Keybinds 0 Fullscreen 2 Font 24/Smallcaps Map View 50x44 Zoom Use 0% Tactical HUD 1 Map Filters NONE Filters NONE Steam 0 RUN: 0870085e-145a-4824-8d76-11c01b358ad0